fUST/lending_fUST_20250220
["ID","MTS","AMOUNT","RATE_DAILY","PERIOD"]
[353756656,1740012648358,-964.71,0.00014602,2]
[353756657,1740012648368,-500.0,0.00014602,2]
[353756658,1740012648379,-500.0,0.00014602,2]
[353756659,1740012648388,-500.0,0.00014602,2]
[353756660,1740012648398,-4344.1,0.00014602,2]
[353756661,1740012648409,-500.0,0.00014602,2]
[353756662,1740012648427,-1063.11,0.00014602,2]
[353756663,1740012648440,-1157.87,0.00014602,2]
[353756664,1740012648450,-500.0,0.00014602,2]
[353756665,1740012648461,-992.86,0.00014602,2]
[353756666,1740012648472,-500.0,0.00014602,2]
[353756667,1740012648483,-603.03,0.00014602,2]
[353756668,1740012648493,-661.93,0.00014602,2]
[353756669,1740012648504,-12941.22,0.00014602,2]
[353756670,1740012648514,-3949.06,0.00014602,2]
[353756671,1740012648525,-667.18,0.00014602,2]
[353756672,1740012648535,-500.0,0.00014602,2]
[353756673,1740012648547,-1000.0,0.00014645,2]
[353756674,1740012648557,-13275.53870192,0.00014647,2]
[353756675,1740012648566,-500.0,0.00014656,2]
[353756676,1740012648576,-151.0,0.00014684,2]
[353756677,1740012648586,-645.10229704,0.00014684,2]
[353756678,1740012648596,-500.0,0.00014684,2]
[353756679,1740012648606,-500.0,0.00014684,2]
[353756680,1740012648617,-622.61,0.00014684,2]
[353756681,1740012648627,-501.11,0.00014684,2]
[353756682,1740012648637,-926.95,0.00014684,2]
[353756683,1740012648649,-500.0,0.00014684,2]
[353756684,1740012648659,-1356.17,0.00014684,2]
[353756685,1740012648669,-947.33,0.00014684,2]
[353756686,1740012648680,-523.83,0.00014684,2]
[353756687,1740012648691,-400.7071026,0.00014684,2]
[353756688,1740012648702,-500.0,0.00014684,2]
[353756689,1740012648713,-964.71,0.00014684,2]
[353756690,1740012648724,-500.0,0.00014684,2]
[353756691,1740012648734,-500.0,0.00014684,2]
[353756692,1740012648744,-500.0,0.00014684,2]
[353756693,1740012648755,-4344.1,0.00014684,2]
[353756694,1740012648765,-500.0,0.00014684,2]
[353756695,1740012648775,-1063.11,0.00014684,2]
[353756696,1740012648785,-1157.87,0.00014684,2]
[353756697,1740012648795,-500.0,0.00014684,2]
[353756698,1740012648804,-992.86,0.00014684,2]
[353756699,1740012648814,-500.0,0.00014684,2]
[353756700,1740012648825,-603.03,0.00014684,2]
[353756701,1740012648835,-661.93,0.00014684,2]
[353756702,1740012648846,-12941.22,0.00014684,2]
[353756703,1740012648856,-3949.06,0.00014684,2]
[353756704,1740012648867,-667.18,0.00014684,2]
[353756705,1740012648876,-500.0,0.00014684,2]
[353756706,1740012648886,-151.0,0.000147,2]
[353756707,1740012648896,-151.0,0.000147,2]
[353756708,1740012648906,-361.8870903,0.00014712,2]
[353756709,1740012648916,-153.0000001,0.00014712,2]
[353756710,1740012648926,-153.5365275,0.00014712,2]
[353756711,1740012648936,-1209.111,0.0001475,2]
[353756712,1740012648947,-172.025,0.0001475,2]
[353756713,1740012648957,-500.0,0.00014767,2]
[353756714,1740012648968,-500.0,0.00014767,2]
[353756715,1740012648979,-622.61,0.00014767,2]
[353756716,1740012648989,-501.11,0.00014767,2]
[353756717,1740012649000,-926.95,0.00014767,2]
[353756718,1740012649009,-609.85998087,0.00014767,2]
[353756719,1740012649020,-1356.17,0.00014767,2]
[353756720,1740012649031,-947.33,0.00014767,2]
[353756721,1740012649041,-523.83,0.00014767,2]
[353756722,1740012649051,-500.0,0.00014767,2]
[353756723,1740012649061,-964.71,0.00014767,2]
[353756724,1740012649072,-500.0,0.00014767,2]
[353756725,1740012649083,-500.0,0.00014767,2]
[353756726,1740012649093,-500.0,0.00014767,2]
[353756727,1740012649103,-4344.1,0.00014767,2]
[353756728,1740012649113,-500.0,0.00014767,2]
[353756729,1740012649124,-1063.11,0.00014767,2]
[353756730,1740012649134,-1157.87,0.00014767,2]
[353756731,1740012649144,-364.30529199,0.00014767,2]
[353756732,1740012649155,-992.86,0.00014767,2]
[353756733,1740012649165,-500.0,0.00014767,2]
[353756734,1740012649175,-603.03,0.00014767,2]
[353756735,1740012649186,-661.93,0.00014767,2]
[353756736,1740012649196,-12941.22,0.00014767,2]
[353756737,1740012649207,-3949.06,0.00014767,2]
[353756738,1740012649218,-667.18,0.00014767,2]
[353756739,1740012649228,-500.0,0.00014767,2]
[353756740,1740012649238,-1000.0,0.00014795,2]
[353756741,1740012649248,-151.0,0.000148,2]
[353756742,1740012649261,-151.0,0.000148,2]
[353756743,1740012649272,-30564.0889166,0.000148,2]
[353756744,1740012649283,-1672.82742775,0.000148,2]
[353756745,1740012649293,-1672.82742775,0.000148,2]
[353756746,1740012649306,-1672.82742775,0.000148,2]
[353756747,1740012649317,-1672.82742775,0.000148,2]
[353756748,1740012649327,-1672.82742775,0.000148,2]
[353756749,1740012649338,-1672.82742775,0.000148,2]
[353756750,1740012649349,-1672.82742775,0.000148,2]
[353756751,1740012649359,-1672.82742775,0.000148,2]
[353756752,1740012649371,-1672.82742775,0.000148,2]
[353756753,1740012649382,-1672.82742775,0.000148,2]
[353756754,1740012649393,-1672.82742775,0.000148,2]
[353756755,1740012649403,-1672.82742775,0.000148,2]
[353756756,1740012649418,-1672.82742775,0.000148,2]
[353756757,1740012649428,-1672.82742775,0.000148,2]
[353756758,1740012649438,-1672.82742775,0.000148,2]
[353756759,1740012649448,-1672.82742775,0.000148,2]
[353756760,1740012649459,-1672.82742775,0.000148,2]
[353756761,1740012649469,-1672.82742775,0.000148,2]
[353756762,1740012649480,-1672.82742775,0.000148,2]
[353756763,1740012649490,-1672.82,0.000148,2]
[353756764,1740012649500,-203.7806808,0.000148,2]
[353756765,1740012649510,-203.7806808,0.000148,2]
[353756766,1740012649521,-203.7806808,0.000148,2]
[353756767,1740012649530,-203.7806808,0.000148,2]
[353756768,1740012649540,-203.7806808,0.000148,2]
[353756769,1740012649550,-203.7806808,0.000148,2]
[353756770,1740012649561,-203.7806808,0.000148,2]
[353756771,1740012649571,-203.7806808,0.000148,2]
[353756772,1740012649581,-203.7806808,0.000148,2]
[353756773,1740012649592,-203.7806808,0.000148,2]
[353756774,1740012649601,-203.7806808,0.000148,2]
[353756775,1740012649611,-203.7806808,0.000148,2]
[353756776,1740012649621,-203.7806808,0.000148,2]
[353756777,1740012649632,-203.7806808,0.000148,2]
[353756778,1740012649642,-203.7806808,0.000148,2]
[353756779,1740012649653,-203.7806808,0.000148,2]
[353756780,1740012649663,-203.7806808,0.000148,2]
[353756781,1740012649673,-203.7806808,0.000148,2]
[353756782,1740012649683,-203.7806808,0.000148,2]
[353756783,1740012649694,-203.78,0.000148,2]
[353756784,1740012649704,-151.0,0.000148,2]
[353756785,1740012649716,-443.6779572,0.00014801,2]
[353756786,1740012649726,-500.0,0.00014849,2]
[353756787,1740012649737,-500.0,0.00014849,2]
[353756788,1740012649748,-622.61,0.00014849,2]
[353756789,1740012649759,-501.11,0.00014849,2]
[353756790,1740012649770,-926.95,0.00014849,2]
[353756791,1740012649780,-1356.17,0.00014849,2]
[353756792,1740012649790,-947.33,0.00014849,2]
[353756793,1740012649800,-523.83,0.00014849,2]
[353756794,1740012649810,-500.0,0.00014849,2]
[353756795,1740012649820,-964.71,0.00014849,2]
[353756796,1740012649830,-500.0,0.00014849,2]
[353756797,1740012649841,-500.0,0.00014849,2]
[353756798,1740012649851,-630.27488513,0.00014849,2]
[353756799,1740012649863,-4344.1,0.00014849,2]
[353756800,1740012649875,-500.0,0.00014849,2]
[353756801,1740012649886,-1063.11,0.00014849,2]
[353756802,1740012649896,-1157.87,0.00014849,2]
[353756803,1740012649906,-992.86,0.00014849,2]
[353756804,1740012649917,-382.93546464,0.00014849,2]
[353756805,1740012649928,-603.03,0.00014849,2]
[353756806,1740012649940,-661.93,0.00014849,2]
[353756807,1740012649951,-12941.22,0.00014849,2]
[353756808,1740012649963,-3949.06,0.00014849,2]
[353756809,1740012649975,-667.18,0.00014849,2]
[353756810,1740012649985,-500.0,0.00014849,2]
[353756811,1740012649997,-159.7587483,0.00014865,2]
[353756812,1740012650008,-500.0,0.00014873,2]
[353756813,1740012650019,-331.98758965,0.00014873,2]
[353756814,1740012650030,-500.0,0.00014873,2]
[353756815,1740012650040,-500.0,0.00014873,2]
[353756816,1740012650050,-151.0,0.00014891,2]
[353756817,1740012650060,-186.224671,0.00014891,2]
[353756818,1740012650070,-186.224671,0.00014891,2]
[353756819,1740012650080,-1352.71955,0.00014891,2]
[353756820,1740012650090,-1352.71955,0.00014891,2]
[353756821,1740012650100,-151.0,0.00014891,2]
[353756822,1740012650111,-789.616638,0.00014891,2]
[353756823,1740012650122,-789.616638,0.00014891,2]
[353756824,1740012650132,-151.0,0.00014891,2]
[353756825,1740012650142,-201.63348696,0.00014891,2]
[353756826,1740012650153,-166.0,0.00014891,2]
[353756827,1740012650163,-166.0,0.00014891,2]
[353756828,1740012650173,-204.66108231,0.00014891,2]
[353756829,1740012650184,-259.39,0.00014891,2]
[353756830,1740012650193,-349.0,0.00014891,2]
[353756831,1740012650203,-314.0,0.00014891,2]
[353756832,1740012650213,-314.0,0.00014891,2]
[353756833,1740012650223,-314.0,0.00014891,2]
[353756834,1740012650232,-349.0,0.00014891,2]
[353756835,1740012650242,-314.0,0.00014891,2]
[353756836,1740012650250,-349.0,0.00014891,2]
[353756837,1740012650260,-314.0,0.00014891,2]
[353756838,1740012650411,-349.0,0.00014891,2]
[353756839,1740012650421,-314.0,0.00014891,2]
[353756840,1740012650431,-217.11643488,0.00014891,2]
[353756841,1740012650442,-314.0,0.00014891,2]
[353756842,1740012650453,-314.0,0.00014891,2]
[353756843,1740012650463,-314.0,0.00014891,2]
[353756844,1740012650473,-314.0,0.00014891,2]
[353756845,1740012650484,-314.0,0.00014891,2]
[353756846,1740012650494,-314.0,0.00014891,2]
[353756847,1740012650504,-314.0,0.00014891,2]
[353756848,1740012650514,-314.0,0.00014891,2]
[353756849,1740012650524,-314.0,0.00014891,2]
[353756850,1740012650534,-314.0,0.00014891,2]
[353756851,1740012650544,-201.80223506,0.00014891,2]
[353756852,1740012650554,-343.6134656,0.00014899,2]
[353756853,1740012650563,-231457.76126888,0.000149,5]
[353756854,1740012650573,-22138.05467038,0.000149,5]
[353756855,1740012650583,-11673.75561442,0.000149,2]
[353756856,1740012650593,-3000.0,0.000149,2]
[353756857,1740012650603,-3426.945,0.000149,2]
[353756858,1740012650613,-179.304951,0.000149,2]
[353756859,1740012650623,-179.304951,0.000149,2]
[353756860,1740012650633,-151.0,0.000149,2]
[353756861,1740012650643,-95131.49965263,0.000149,2]
[353756862,1740012650747,-2808.09999998,0.000149,2]
[353756863,1740012650763,-481.6659432,0.000149,2]
[353756864,1740012650949,-500.0,0.00013698,2]
[353756865,1740012650960,-500.0,0.00013698,2]
[353756866,1740012650971,-500.0,0.0001378,2]
[353756867,1740012650980,-500.0,0.0001378,2]
[353756868,1740012650990,-500.0,0.00013863,2]
[353756869,1740012651000,-507.54,0.00013863,2]
[353756870,1740012651009,-500.0,0.00013945,2]
[353756871,1740012651020,-500.0,0.00014027,2]
[353756872,1740012651030,-500.0,0.00014109,2]
[353756873,1740012651040,-500.0,0.00014191,2]
[353756874,1740012651050,-500.0,0.00014273,2]
[353756875,1740012651060,-500.0,0.00014356,2]
[353756876,1740012651070,-500.0,0.00014438,2]
[353756877,1740012651080,-151.0,0.00014891,2]
[353756878,1740012651090,-1709.57694541,0.000149,2]
[353756879,1740012651103,-642.81311,0.000149,2]
[353756880,1740012651122,-500.0,0.0001452,2]
[353756881,1740012651132,-1187.5,0.000149,2]
[353756884,1740012908664,159.0,0.00019,120]
[353756885,1740012913796,159.0,0.00019,120]
[353756908,1740013568901,164.299048,9.041e-05,2]
[353756917,1740013760963,218.19,0.00012,30]
[353756932,1740013832277,-286.75,0.00013678,2]
[353756939,1740013832336,-13.25,0.00013678,2]
[353756941,1740013832346,-500.0,0.00013679,2]
[353756943,1740013832355,-241.89254365,0.00013679,2]
[353756945,1740013832365,-263.62075694,0.00013679,2]
[353756947,1740013832374,-500.0,0.00013679,2]
[353756949,1740013832384,-500.0,0.00013679,2]
[353756951,1740013832393,-532.68476148,0.00013679,2]
[353756953,1740013832402,-500.0,0.00013679,2]
[353756955,1740013832411,-500.0,0.00013679,2]
[353756957,1740013832421,-500.0,0.00013679,2]
[353756959,1740013832430,-500.0,0.00013679,2]
[353756960,1740013832439,-500.0,0.00013679,2]
[353756962,1740013832449,-500.0,0.00013679,2]
[353756964,1740013832459,-500.0,0.00013679,2]
[353756966,1740013832468,-38971.19439195,0.0001368,2]
[353756968,1740013832477,-254.2780835,0.00013697,2]
[353756970,1740013832487,-457.27851869,0.00013698,2]
[353756972,1740013832496,-248.05737344,0.00013698,2]
[353756974,1740013832505,-630.00377702,0.00013698,2]
[353756976,1740013832514,-500.0,0.00013698,2]
[353756979,1740013832523,-537.17466334,0.00013698,2]
[353756982,1740013832532,-500.0,0.00013698,2]
[353756985,1740013832541,-523.68172223,0.00013698,2]
[353756987,1740013832550,-500.0,0.00013698,2]
[353756990,1740013832559,-500.0,0.00013698,2]
[353756993,1740013832568,-511.02161474,0.00013698,2]
[353756996,1740013832578,-500.0,0.00013698,2]
[353756999,1740013832587,-500.0,0.00013698,2]
[353757002,1740013832596,-500.0,0.00013698,2]
[353757005,1740013832605,-500.0,0.00013698,2]
[353757008,1740013832614,-500.0,0.00013698,2]
[353757011,1740013832624,-500.0,0.00013698,2]
[353757015,1740013832633,-500.0,0.00013698,2]
[353757017,1740013832642,-500.0,0.00013698,2]
[353757020,1740013832656,-500.0,0.00013698,2]
[353757024,1740013832665,-500.0,0.00013698,2]
[353757027,1740013832675,-500.0,0.00013698,2]
[353757030,1740013832689,-500.0,0.00013698,2]
[353757033,1740013832698,-509.24052589,0.00013698,2]
[353757035,1740013832707,-500.0,0.00013698,2]
[353757039,1740013832717,-500.0,0.00013698,2]
[353757042,1740013832726,-500.0,0.00013698,2]
[353757045,1740013832736,-500.0,0.00013698,2]
[353757047,1740013832746,-500.0,0.00013698,2]
[353757049,1740013832755,-500.0,0.00013698,2]
[353757051,1740013832765,-500.0,0.00013698,2]
[353757052,1740013832775,-500.0,0.00013698,2]
[353757053,1740013832786,-500.0,0.00013698,2]
[353757054,1740013832795,-511.67033962,0.00013698,2]
[353757055,1740013832804,-500.29079218,0.00013698,2]
[353757056,1740013832814,-500.0,0.00013698,2]
[353757057,1740013832825,-500.0,0.00013698,2]
[353757058,1740013832835,-500.0,0.00013698,2]
[353757059,1740013832844,-500.0,0.00013698,2]
[353757060,1740013832854,-500.0,0.00013698,2]
[353757061,1740013832863,-500.0,0.00013698,2]
[353757062,1740013832872,-603.59427457,0.00013698,2]
[353757063,1740013832881,-500.0,0.00013698,2]
[353757064,1740013832890,-500.0,0.00013698,2]
[353757065,1740013832899,-500.0,0.00013698,2]
[353757066,1740013832909,-500.0,0.00013698,2]
[353757067,1740013832918,-500.0,0.00013698,2]
[353757068,1740013832927,-500.0,0.00013698,2]
[353757069,1740013832936,-500.0,0.00013698,2]
[353757070,1740013832946,-500.0,0.00013698,2]
[353757071,1740013832955,-500.0,0.00013698,2]
[353757072,1740013832964,-500.0,0.00013698,2]
[353757073,1740013832974,-500.0,0.00013698,2]
[353757074,1740013832983,-500.0,0.00013698,2]
[353757075,1740013832992,-500.0,0.00013698,2]
[353757076,1740013833002,-500.0,0.00013698,2]
[353757077,1740013833011,-500.0,0.00013698,2]
[353757078,1740013833021,-500.0,0.00013698,2]
[353757079,1740013833031,-221.65742302,0.00013698,2]
[353757080,1740013833040,-618.32541929,0.00013698,2]
[353757081,1740013833049,-500.0,0.00013698,2]
[353757082,1740013833060,-500.0,0.00013698,2]
[353757083,1740013833070,-500.0,0.00013698,2]
[353757084,1740013833080,-500.0,0.00013698,2]
[353757085,1740013833090,-500.0,0.00013698,2]
[353757086,1740013833099,-500.0,0.00013698,2]
[353757087,1740013833109,-500.0,0.00013698,2]
[353757088,1740013833119,-500.0,0.00013698,2]
[353757089,1740013833128,-500.0,0.00013698,2]
[353757090,1740013833137,-500.0,0.00013698,2]
[353757091,1740013833148,-500.0,0.00013698,2]
[353757092,1740013833157,-394.71676488,0.00013698,2]
[353757093,1740013833166,-500.0,0.00013698,2]
[353757094,1740013833176,-500.0,0.00013698,2]
[353757095,1740013833185,-500.0,0.00013698,2]
[353757096,1740013833195,-500.0,0.00013698,2]
[353757097,1740013833205,-500.0,0.00013698,2]
[353757098,1740013833215,-434.41680612,0.00013698,2]
[353757099,1740013833224,-500.0,0.00013698,2]
[353757100,1740013833234,-500.0,0.00013698,2]
[353757101,1740013833246,-500.0,0.00013698,2]
[353757102,1740013833257,-500.0,0.00013698,2]
[353757103,1740013833267,-500.0,0.00013698,2]
[353757104,1740013833277,-500.0,0.00013698,2]
[353757105,1740013833287,-500.0,0.00013698,2]
[353757106,1740013833297,-500.0,0.00013698,2]
[353757107,1740013833306,-500.0,0.00013698,2]
[353757108,1740013833315,-500.0,0.00013698,2]
[353757109,1740013833325,-500.0,0.00013698,2]
[353757110,1740013833335,-500.0,0.00013698,2]
[353757111,1740013833346,-500.0,0.00013698,2]
[353757112,1740013833359,-500.0,0.00013698,2]
[353757113,1740013833369,-500.0,0.00013698,2]
[353757114,1740013833379,-500.0,0.00013698,2]
[353757115,1740013833389,-500.0,0.00013698,2]
[353757116,1740013833399,-500.0,0.00013698,2]
[353757117,1740013833409,-500.0,0.00013698,2]
[353757118,1740013833419,-500.0,0.00013698,2]
[353757119,1740013833429,-500.0,0.00013698,2]
[353757120,1740013833439,-500.0,0.00013698,2]
[353757121,1740013833449,-500.0,0.00013698,2]
[353757122,1740013833459,-500.0,0.00013698,2]
[353757123,1740013833469,-500.0,0.00013698,2]
[353757124,1740013833479,-500.0,0.00013698,2]
[353757125,1740013833490,-500.0,0.00013698,2]
[353757126,1740013833501,-500.0,0.00013698,2]
[353757127,1740013833511,-500.0,0.00013698,2]
[353757128,1740013833662,-500.0,0.00013698,2]
[353757129,1740013833672,-636.42,0.00013698,2]
[353757130,1740013833682,-500.0,0.00013698,2]
[353757131,1740013833692,-500.0,0.00013698,2]
[353757132,1740013833702,-500.0,0.00013698,2]
[353757133,1740013833712,-500.0,0.00013698,2]
[353757134,1740013833723,-500.0,0.00013698,2]
[353757135,1740013833735,-500.0,0.00013698,2]
[353757136,1740013833745,-288.28772424,0.00013698,2]
[353757137,1740013833755,-500.0,0.00013698,2]
[353757138,1740013833764,-500.0,0.00013698,2]
[353757139,1740013833774,-500.0,0.00013698,2]
[353757140,1740013833783,-412.3063466,0.00013698,2]
[353757141,1740013833793,-500.0,0.00013698,2]
[353757142,1740013833803,-500.0,0.00013698,2]
[353757143,1740013833815,-500.0,0.00013698,2]
[353757144,1740013833825,-500.0,0.00013698,2]
[353757145,1740013833835,-500.0,0.00013698,2]
[353757146,1740013833844,-500.0,0.00013698,2]
[353757147,1740013833854,-500.0,0.00013698,2]
[353757148,1740013833863,-500.0,0.00013698,2]
[353757149,1740013833876,-500.0,0.00013698,2]
[353757150,1740013833893,-500.0,0.00013698,2]
[353757151,1740013833915,-500.0,0.00013698,2]
[353757152,1740013833936,-500.0,0.00013698,2]
[353757153,1740013833958,-500.0,0.00013698,2]
[353757154,1740013833981,-1000.0,0.00013698,2]
[353757155,1740013834004,-500.0,0.00013698,2]
[353757156,1740013834026,-500.0,0.00013698,2]
[353757157,1740013834049,-500.0,0.00013698,2]
[353757158,1740013834066,-501.0711828,0.00013698,2]
[353757159,1740013834076,-500.0,0.00013698,2]
[353757160,1740013834086,-500.0,0.00013698,2]
[353757161,1740013834096,-500.0,0.00013698,2]
[353757162,1740013834106,-500.0,0.00013698,2]
[353757163,1740013834116,-500.0,0.00013698,2]
[353757164,1740013834126,-500.0,0.00013698,2]
[353757165,1740013834136,-542.6805839,0.00013698,2]
[353757166,1740013834145,-501.15493272,0.00013698,2]
[353757167,1740013834155,-500.0,0.00013698,2]
[353757168,1740013834165,-500.0,0.00013698,2]
[353757169,1740013834174,-500.0,0.00013698,2]
[353757170,1740013834184,-500.0,0.00013698,2]
[353757171,1740013834194,-500.0,0.00013698,2]
[353757172,1740013834203,-500.0,0.00013698,2]
[353757173,1740013834213,-500.0,0.00013698,2]
[353757174,1740013834223,-500.0,0.00013698,2]
[353757175,1740013834233,-500.0,0.00013698,2]
[353757176,1740013834243,-500.0,0.00013698,2]
[353757177,1740013834253,-500.0,0.00013698,2]
[353757178,1740013834262,-500.0,0.00013698,2]
[353757179,1740013834272,-500.0,0.00013698,2]
[353757180,1740013834282,-500.0,0.00013698,2]
[353757181,1740013834291,-500.0,0.00013698,2]
[353757182,1740013834301,-500.0,0.00013698,2]
[353757183,1740013834310,-500.0,0.00013698,2]
[353757184,1740013834321,-524.56172416,0.00013698,2]
[353757185,1740013834330,-500.0,0.00013698,2]
[353757186,1740013834341,-500.0,0.00013698,2]
[353757187,1740013834351,-500.808205,0.00013698,2]
[353757188,1740013834361,-500.0,0.00013698,2]
[353757189,1740013834370,-500.0,0.00013698,2]
[353757190,1740013834380,-500.0,0.00013698,2]
[353757191,1740013834390,-500.0,0.00013698,2]
[353757192,1740013834399,-320.10179872,0.00013698,2]
[353757193,1740013834408,-500.0,0.00013698,2]
[353757194,1740013834418,-500.0,0.00013698,2]
[353757195,1740013834427,-500.0,0.00013698,2]
[353757196,1740013834437,-500.0,0.00013698,2]
[353757197,1740013834447,-500.0,0.00013698,2]
[353757198,1740013834457,-500.0,0.00013698,2]
[353757199,1740013834466,-500.0,0.00013698,2]
[353757200,1740013834476,-234.94693311,0.00013698,2]
[353757212,1740013838167,-366.71580821,0.00013698,2]
[353757213,1740013838177,-500.0,0.00013698,2]
[353757214,1740013838186,-500.0,0.00013698,2]
[353757215,1740013838196,-280.6294851,0.00013698,2]
[353757216,1740013838207,-219.3705149,0.00013698,2]
[353757217,1740013838217,-500.0,0.00013698,2]
[353757218,1740013838226,-500.0,0.00013698,2]
[353757219,1740013838236,-500.0,0.00013698,2]
[353757220,1740013838246,-500.0,0.00013698,2]
[353757221,1740013838257,-500.0,0.00013698,2]
[353757222,1740013838267,-20.3755717,0.00013698,2]
[353757223,1740013838280,-479.6244283,0.00013698,2]
[353757224,1740013838290,-500.0,0.00013698,2]
[353757225,1740013838299,-500.0,0.00013698,2]
[353757226,1740013838309,-500.0,0.00013698,2]
[353757227,1740013838318,-500.0,0.00013698,2]
[353757228,1740013838328,-500.0,0.00013698,2]
[353757229,1740013838337,-500.0,0.00013698,2]
[353757230,1740013838347,-73.67276115,0.00013698,2]
[353757231,1740013838359,-426.32723885,0.00013698,2]
[353757232,1740013838368,-500.0,0.00013698,2]
[353757233,1740013838377,-186.79855057,0.00013698,2]
[353757234,1740013838394,-313.20144943,0.00013698,2]
[353757235,1740013838407,-500.5080966,0.00013698,2]
[353757236,1740013838425,-6677.43914669,0.00013698,2]
[353757237,1740013838457,-10417.30085331,0.00013698,2]
[353757238,1740013838487,-500.0,0.00013698,2]
[353757239,1740013838519,-500.0,0.00013698,2]
[353757240,1740013838556,-500.0,0.00013698,2]
[353757241,1740013838588,-500.0,0.00013698,2]
[353757242,1740013838623,-500.0,0.00013698,2]
[353757243,1740013838652,-500.0,0.00013698,2]
[353757244,1740013838679,-474.94861074,0.00013698,2]
[353757245,1740013838706,-500.0,0.00013698,2]
[353757246,1740013838719,-500.0,0.00013698,2]
[353757247,1740013838732,-500.0,0.00013698,2]
[353757248,1740013838744,-582.87,0.00013698,2]
[353757249,1740013838758,-502.33477907,0.00013698,2]
[353757250,1740013838770,-362.16737899,0.00013698,2]
[353757251,1740013838786,-137.83262101,0.00013698,2]
[353757252,1740013838798,-500.0,0.00013698,5]
[353757253,1740013838809,-531.73676868,0.00013698,2]
[353757254,1740013838821,-500.0,0.00013698,2]
[353757255,1740013838833,-500.0,0.00013698,2]
[353757256,1740013838844,-565.46,0.00013698,2]
[353757257,1740013838856,-500.0,0.00013698,2]
[353757258,1740013838869,-575.49018478,0.00013698,2]
[353757259,1740013838881,-500.0,0.00013698,2]
[353757260,1740013838893,-500.0,0.00013698,2]
[353757261,1740013838904,-500.0,0.00013698,2]
[353757262,1740013838914,-500.0,0.00013698,2]
[353757263,1740013838924,-500.0,0.00013698,2]
[353757264,1740013838936,-500.0,0.00013698,2]
[353757265,1740013838947,-298.22862893,0.00013698,2]
[353757266,1740013838962,-201.77137107,0.00013698,2]
[353757267,1740013838974,-500.0,0.00013698,2]
[353757268,1740013838987,-620.06,0.00013698,2]
[353757269,1740013838998,-500.0,0.00013698,2]
[353757270,1740013839012,-500.0,0.00013698,2]
[353757271,1740013839024,-500.0,0.00013698,2]
[353757272,1740013839037,-500.0,0.00013698,2]
[353757273,1740013839049,-825.55423432,0.00013698,2]
[353757278,1740013840532,-109.83576568,0.00013698,2]
[353757279,1740013840543,-500.0,0.00013698,2]
[353757280,1740013840554,-500.0,0.00013698,2]
[353757281,1740013840564,-786.27,0.00013698,2]
[353757282,1740013840574,-500.0,0.00013698,2]
[353757283,1740013840584,-500.0,0.00013698,2]
[353757284,1740013840595,-500.0,0.00013698,2]
[353757285,1740013840605,-1339.64,0.00013698,2]
[353757286,1740013840615,-500.0,0.00013698,2]
[353757287,1740013840626,-500.0,0.00013698,2]
[353757288,1740013840636,-500.0,0.00013698,2]
[353757289,1740013840648,-2415.0,0.00013698,2]